[Event "MČR juniorů a juniorek v rapid šachu 2024"]
[Site "Hotel Fit Fun, Harrachov, Czech Republic"]
[Date "2024.09.21"]
[Round "5.31"]
[White "Krizan Jakub"]
[Black "Marxova Sarka"]
[Result "0-1"]
[TimeControl "20+5"]
[WhiteFideId "23717017"]
[BlackFideId "23701862"]
[WhiteElo "1000"]
[BlackElo "1684"]

1. e4 {[%clk 00:20:08]} {[%emt 00:00:02]} c5 {[%clk 00:20:09]} {[%emt
00:00:01]} 2. Nf3 {[%clk 00:20:11]} {[%emt 00:00:02]} d6 {[%clk 00:20:12]}
{[%emt 00:00:02]} 3. Bc4 {[%clk 00:20:08]} {[%emt 00:00:07]} e6 {[%clk
00:20:07]} {[%emt 00:00:10]} 4. Nc3 {[%clk 00:19:59]} {[%emt 00:00:14]} Nf6
{[%clk 00:19:59]} {[%emt 00:00:13]} 5. O-O {[%clk 00:19:55]} {[%emt 00:00:08]}
g6 {[%clk 00:19:54]} {[%emt 00:00:11]} 6. e5 {[%clk 00:19:30]} {[%emt
00:00:31]} dxe5 {[%clk 00:19:48]} {[%emt 00:00:10]} 7. Nxe5 {[%clk 00:19:28]}
{[%emt 00:00:06]} Bg7 {[%clk 00:19:43]} {[%emt 00:00:11]} 8. Bb5+ {[%clk
00:19:00]} {[%emt 00:00:33]} Nbd7 {[%clk 00:19:31]} {[%emt 00:00:16]} 9. d3
{[%clk 00:18:39]} {[%emt 00:00:26]} a6 {[%clk 00:19:27]} {[%emt 00:00:10]} 10.
Nxd7 {[%clk 00:17:57]} {[%emt 00:00:47]} Nxd7 {[%clk 00:19:06]} {[%emt
00:00:26]} 11. Bc4 {[%clk 00:17:53]} {[%emt 00:00:09]} b5 {[%clk 00:19:07]}
{[%emt 00:00:04]} 12. Bb3 {[%clk 00:17:55]} {[%emt 00:00:03]} Bb7 {[%clk
00:19:06]} {[%emt 00:00:06]} 13. Be3 {[%clk 00:17:33]} {[%emt 00:00:27]} Qc8
{[%clk 00:18:35]} {[%emt 00:00:35]} 14. Qd2 {[%clk 00:16:42]} {[%emt 00:00:57]}
Qc6 {[%clk 00:18:28]} {[%emt 00:00:12]} 15. f3 {[%clk 00:15:54]} {[%emt
00:00:53]} Rd8 {[%clk 00:17:57]} {[%emt 00:00:36]} 16. Rae1 {[%clk 00:15:06]}
{[%emt 00:00:53]} Nf6 {[%clk 00:17:28]} {[%emt 00:00:33]} 17. a4 {[%clk
00:13:39]} {[%emt 00:01:33]} c4 {[%clk 00:17:18]} {[%emt 00:00:15]} 18. axb5
{[%clk 00:12:29]} {[%emt 00:01:15]} axb5 {[%clk 00:17:14]} {[%emt 00:00:09]} 19.
Ba2 {[%clk 00:12:31]} {[%emt 00:00:03]} cxd3 {[%clk 00:16:37]} {[%emt
00:00:42]} 20. cxd3 {[%clk 00:11:59]} {[%emt 00:00:37]} Ba6 {[%clk 00:16:08]}
{[%emt 00:00:33]} 21. b4 {[%clk 00:11:06]} {[%emt 00:00:58]} Qd6 {[%clk
00:14:54]} {[%emt 00:01:19]} 22. Rd1 {[%clk 00:10:40]} {[%emt 00:00:31]} Qxb4
{[%clk 00:14:39]} {[%emt 00:00:20]} 23. Ne4 {[%clk 00:09:42]} {[%emt 00:01:03]}
Qxd2 {[%clk 00:14:35]} {[%emt 00:00:09]} 24. Rxd2 {[%clk 00:09:34]} {[%emt
00:00:13]} Nd5 {[%clk 00:13:43]} {[%emt 00:00:56]} 25. Bc5 {[%clk 00:09:16]}
{[%emt 00:00:24]} Be5 {[%clk 00:10:53]} {[%emt 00:02:55]} 26. d4 {[%clk
00:08:52]} {[%emt 00:00:29]} Bc7 {[%clk 00:10:12]} {[%emt 00:00:46]} 27. Bxd5
{[%clk 00:08:50]} {[%emt 00:00:07]} Rxd5 {[%clk 00:10:03]} {[%emt 00:00:14]} 28.
Nf6+ {[%clk 00:08:44]} {[%emt 00:00:11]} Kd8 {[%clk 00:10:01]} {[%emt
00:00:06]} 29. Nxd5 {[%clk 00:08:46]} {[%emt 00:00:03]} exd5 {[%clk 00:10:03]}
{[%emt 00:00:04]} 30. Re1 {[%clk 00:08:46]} {[%emt 00:00:05]} Ba5 {[%clk
00:09:57]} {[%emt 00:00:11]} 31. Ra2 {[%clk 00:08:17]} {[%emt 00:00:34]} Bxe1
{[%clk 00:09:51]} {[%emt 00:00:12]} 32. Rxa6 {[%clk 00:08:19]} {[%emt
00:00:02]} Re8 {[%clk 00:08:44]} {[%emt 00:01:10]} 33. Rd6+ {[%clk 00:07:47]}
{[%emt 00:00:39]} Kc7 {[%clk 00:08:37]} {[%emt 00:00:12]} 34. Rxd5 {[%clk
00:07:45]} {[%emt 00:00:07]} b4 {[%clk 00:08:30]} {[%emt 00:00:12]} 35. Bd6+
{[%clk 00:07:23]} {[%emt 00:00:27]} Kc6 {[%clk 00:08:08]} {[%emt 00:00:26]} 36.
Bf4 {[%clk 00:06:39]} {[%emt 00:00:49]} Kxd5 {[%clk 00:08:01]} {[%emt
00:00:13]} 0-1



[ePGN "0.1;DGT LiveChess/2.2.6"]

[Event "MČR juniorů a juniorek v rapid šachu 2024"]
[Site "Hotel Fit Fun, Harrachov, Czech Republic"]
[Date "2024.09.21"]
[Round "5.32"]
[White "Vratil Tomas"]
[Black "Vondra Filip"]
[Result "1-0"]
[TimeControl "20+5"]
[WhiteFideId "23756870"]
[BlackFideId "23725176"]
[WhiteElo "1671"]
[BlackElo "1598"]

1. e4 {[%clk 00:20:05]} {[%emt 00:04:28]} d5 {[%clk 00:20:05]} 2. exd5 {[%clk
00:20:05]} {[%emt 00:00:08]} Nf6 {[%clk 00:20:05]} 3. Nc3 {[%clk 00:20:05]}
{[%emt 00:00:03]} Nxd5 {[%clk 00:20:05]} 4. Bc4 {[%clk 00:20:05]} {[%emt
00:00:27]} Nb6 {[%clk 00:20:05]} {[%emt 00:00:06]} 5. Bb3 {[%clk 00:20:05]}
{[%emt 00:00:03]} Nc6 {[%clk 00:20:05]} {[%emt 00:00:03]} 6. d3 {[%clk
00:20:05]} {[%emt 00:00:09]} g6 {[%clk 00:20:05]} {[%emt 00:00:03]} 7. Bd2
{[%clk 00:20:05]} {[%emt 00:00:02]} Bg7 {[%clk 00:20:05]} {[%emt 00:00:01]} 8.
Nf3 {[%clk 00:20:05]} {[%emt 00:00:04]} Bg4 {[%clk 00:20:05]} 9. h3 {[%clk
00:20:05]} {[%emt 00:00:02]} Bf5 {[%clk 00:20:05]} {[%emt 00:00:16]} 10. O-O
{[%clk 00:20:05]} {[%emt 00:00:18]} O-O {[%clk 00:20:05]} {[%emt 00:00:02]} 11.
Re1 {[%clk 00:20:05]} {[%emt 00:00:18]} Qd7 {[%clk 00:20:05]} {[%emt 00:00:24]}
12. Qc1 {[%clk 00:20:05]} {[%emt 00:00:02]} Bxh3 {[%clk 00:20:05]} {[%emt
00:01:55]} 13. gxh3 {[%clk 00:20:05]} {[%emt 00:00:10]} Qxh3 {[%clk 00:20:05]}
{[%emt 00:00:01]} 14. Nh2 {[%clk 00:20:05]} {[%emt 00:01:58]} Ne5 {[%clk
00:19:34]} {[%emt 00:02:29]} 15. Re3 {[%clk 00:19:15]} {[%emt 00:00:55]} Qh4
{[%clk 00:18:19]} {[%emt 00:01:20]} 16. Ne4 {[%clk 00:17:34]} {[%emt 00:01:46]}
Bh6 {[%clk 00:17:55]} {[%emt 00:00:31]} 17. Rg3 {[%clk 00:16:40]} {[%emt
00:00:57]} Bxd2 {[%clk 00:17:41]} {[%emt 00:00:20]} 18. Qxd2 {[%clk 00:16:43]}
{[%emt 00:00:01]} Kh8 {[%clk 00:14:43]} {[%emt 00:04:15]} 19. Ng5 {[%clk
00:17:44]} {[%emt 00:00:02]} f5 {[%emt 00:02:51]} 20. Rh3 Qxh3 {[%clk
00:10:06]} {[%emt 00:02:06]} 21. Nxh3 {[%clk 00:17:41]} {[%emt 00:00:03]} f4
{[%clk 00:10:03]} {[%emt 00:00:09]} 22. Qc3 {[%clk 00:17:30]} {[%emt 00:00:15]}
Nbd7 {[%clk 00:09:58]} {[%emt 00:00:10]} 23. Ng4 {[%clk 00:17:05]} {[%emt
00:00:31]} Rf5 {[%clk 00:09:48]} {[%emt 00:00:15]} 24. Nxe5 {[%clk 00:17:01]}
{[%emt 00:00:09]} Nxe5 {[%clk 00:09:52]} 25. Be6 {[%clk 00:16:53]} {[%emt
00:00:13]} Rh5 {[%clk 00:09:36]} {[%emt 00:00:21]} 26. Bg4 {[%clk 00:16:55]}
{[%emt 00:00:03]} 1-0



[ePGN "0.1;DGT LiveChess/2.2.6"]

[Event "MČR juniorů a juniorek v rapid šachu 2024"]
[Site "Hotel Fit Fun, Harrachov, Czech Republic"]
[Date "2024.09.21"]
[Round "5.33"]
[White "Horvath, Michal"]
[Black "Jun Rostislav"]
[Result "1-0"]
[TimeControl "20+5"]
[BlackFideId "23719524"]
[WhiteElo "1000"]
[BlackElo "1641"]

1. e4 {[%clk 00:20:08]} c5 {[%clk 00:20:09]} {[%emt 00:00:01]} 2. c3 {[%clk
00:20:10]} {[%emt 00:00:03]} Nc6 {[%clk 00:20:09]} {[%emt 00:00:05]} 3. d4
{[%clk 00:20:07]} {[%emt 00:00:08]} cxd4 {[%clk 00:20:12]} {[%emt 00:00:01]} 4.
cxd4 {[%clk 00:20:11]} {[%emt 00:00:01]} e6 {[%clk 00:20:17]} {[%emt 00:00:01]}
5. Nf3 {[%clk 00:20:05]} {[%emt 00:00:10]} d6 {[%clk 00:20:20]} {[%emt
00:00:01]} 6. Nc3 {[%clk 00:20:07]} {[%emt 00:00:03]} Nf6 {[%clk 00:20:23]}
{[%emt 00:00:02]} 7. Bg5 {[%clk 00:19:55]} {[%emt 00:00:17]} Be7 {[%clk
00:20:26]} {[%emt 00:00:03]} 8. Bc4 {[%clk 00:18:45]} {[%emt 00:01:15]} O-O
{[%clk 00:20:28]} {[%emt 00:00:03]} 9. O-O {[%clk 00:18:44]} {[%emt 00:00:05]}
a6 {[%clk 00:20:31]} {[%emt 00:00:03]} 10. Re1 {[%clk 00:18:45]} {[%emt
00:00:04]} b5 {[%clk 00:20:33]} {[%emt 00:00:03]} 11. Bb3 {[%clk 00:18:46]}
{[%emt 00:00:04]} Bb7 {[%clk 00:20:36]} {[%emt 00:00:02]} 12. d5 {[%clk
00:18:27]} {[%emt 00:00:24]} exd5 {[%clk 00:19:38]} {[%emt 00:01:03]} 13. exd5
{[%clk 00:18:26]} {[%emt 00:00:06]} Na5 {[%clk 00:18:25]} {[%emt 00:01:18]} 14.
Bc2 {[%clk 00:17:30]} {[%emt 00:01:00]} Nc4 {[%clk 00:17:32]} {[%emt 00:00:59]}
15. b3 {[%clk 00:17:17]} {[%emt 00:00:18]} Nb6 {[%clk 00:17:24]} {[%emt
00:00:10]} 16. Qd3 {[%clk 00:17:15]} {[%emt 00:00:10]} g6 {[%clk 00:16:49]}
{[%emt 00:00:39]} 17. Qd4 {[%clk 00:16:48]} {[%emt 00:00:32]} Nbd7 {[%clk
00:16:19]} {[%emt 00:00:36]} 18. Bh6 {[%clk 00:15:24]} {[%emt 00:01:28]} Re8
{[%clk 00:16:09]} {[%emt 00:00:15]} 19. Ne4 {[%clk 00:12:30]} {[%emt 00:02:59]}
Bxd5 {[%clk 00:14:39]} {[%emt 00:01:36]} 20. Nxf6+ {[%clk 00:11:56]} {[%emt
00:00:39]} Nxf6 {[%clk 00:14:38]} {[%emt 00:00:07]} 21. Be4 {[%clk 00:11:20]}
{[%emt 00:00:39]} Bxe4 {[%clk 00:14:02]} {[%emt 00:00:42]} 22. Rxe4 {[%clk
00:11:22]} {[%emt 00:00:02]} d5 {[%clk 00:09:22]} {[%emt 00:04:46]} 23. Re3
{[%clk 00:11:06]} {[%emt 00:00:20]} Rc8 {[%clk 00:05:43]} {[%emt 00:03:45]} 24.
Rae1 {[%clk 00:09:57]} {[%emt 00:01:13]} Qd6 {[%clk 00:04:51]} {[%emt
00:00:57]} 25. g3 {[%clk 00:08:20]} {[%emt 00:01:43]} a5 {[%clk 00:01:13]}
{[%emt 00:03:43]} 26. Bg5 {[%clk 00:08:10]} {[%emt 00:00:14]} Kg7 {[%clk
00:00:32]} {[%emt 00:00:47]} 27. h4 {[%clk 00:05:42]} {[%emt 00:02:33]} h6
{[%clk 00:00:35]} {[%emt 00:00:02]} 28. Bf4 {[%clk 00:04:57]} {[%emt 00:00:49]}
Qc6 {[%clk 00:00:12]} {[%emt 00:00:29]} 29. Rxe7 {[%clk 00:04:51]} {[%emt
00:00:10]} Rxe7 {[%clk 00:00:15]} {[%emt 00:00:03]} 30. Rxe7 {[%clk 00:04:54]}
{[%emt 00:00:02]} Qc2 {[%clk 00:00:08]} {[%emt 00:00:13]} 31. Bxh6+ {[%clk
00:04:33]} {[%emt 00:00:25]} Kxh6 {[%clk 00:00:10]} {[%emt 00:00:03]} 32. Qxf6
{[%clk 00:04:35]} {[%emt 00:00:02]} Qd1+ {[%clk 00:00:06]} {[%emt 00:00:09]} 33.
Kg2 {[%clk 00:04:35]} {[%emt 00:00:05]} Qd3 {[%clk 00:00:06]} {[%emt 00:00:06]}
34. Rxf7 {[%clk 00:04:22]} {[%emt 00:00:17]} b4 {[%clk 00:00:06]} {[%emt
00:00:06]} 35. Qg5# {[%clk 00:04:12]} {[%emt 00:00:14]} 1-0



[ePGN "0.1;DGT LiveChess/2.2.6"]

[Event "MČR juniorů a juniorek v rapid šachu 2024"]
[Site "Hotel Fit Fun, Harrachov, Czech Republic"]
[Date "2024.09.21"]
[Round "5.34"]
[White "Dufkova Tereza"]
[Black "Macova Marketa"]
[Result "0-1"]
[TimeControl "20+5"]
[WhiteFideId "23744383"]
[BlackFideId "23715588"]
[WhiteElo "1601"]
[BlackElo "1587"]

1. e4 {[%clk 00:20:08]} {[%emt 00:00:02]} e5 {[%clk 00:20:08]} {[%emt
00:00:02]} 2. Nf3 {[%clk 00:20:12]} {[%emt 00:00:01]} Nc6 {[%clk 00:20:12]}
{[%emt 00:00:02]} 3. d4 {[%clk 00:20:15]} {[%emt 00:00:01]} exd4 {[%clk
00:20:13]} {[%emt 00:00:04]} 4. Nxd4 {[%clk 00:20:18]} {[%emt 00:00:02]} Nxd4
{[%clk 00:20:12]} {[%emt 00:00:06]} 5. Qxd4 {[%clk 00:20:22]} {[%emt 00:00:02]}
d6 {[%clk 00:19:58]} {[%emt 00:00:19]} 6. Bc4 {[%clk 00:19:50]} {[%emt
00:00:36]} Bg4 {[%emt 00:01:07]} 7. O-O {[%clk 00:17:55]} {[%emt 00:01:28]} Qd7
{[%clk 00:19:08]} {[%emt 00:00:25]} 8. Re1 {[%clk 00:16:43]} {[%emt 00:01:18]}
Be7 {[%clk 00:18:49]} {[%emt 00:00:23]} 9. Nc3 {[%clk 00:16:40]} Bf6 {[%clk
00:17:26]} {[%emt 00:01:36]} 10. Qd3 {[%clk 00:15:52]} Ne7 {[%clk 00:15:08]}
{[%emt 00:03:16]} 11. Bf4 {[%clk 00:14:37]} Ng6 {[%clk 00:13:42]} {[%emt
00:02:51]} 12. Bg3 {[%clk 00:13:47]} h5 {[%clk 00:12:25]} {[%emt 00:02:17]} 13.
f3 {[%clk 00:12:00]} Be6 {[%clk 00:12:25]} {[%emt 00:01:58]} 14. Bxe6 {[%clk
00:10:14]} Qxe6 {[%clk 00:12:09]} {[%emt 00:02:12]} 15. Qb5+ {[%clk 00:10:11]}
Qd7 {[%clk 00:11:54]} {[%emt 00:00:27]} 16. Qxb7 {[%clk 00:10:14]} O-O {[%clk
00:11:35]} {[%emt 00:00:26]} 17. Rab1 {[%clk 00:09:30]} {[%emt 00:00:49]} Rfb8
{[%clk 00:08:55]} {[%emt 00:02:45]} 18. Qd5 {[%clk 00:09:32]} {[%emt 00:00:03]}
h4 {[%emt 00:01:54]} 19. Bf2 {[%clk 00:08:03]} {[%emt 00:00:40]} Nf4 {[%clk
00:07:40]} {[%emt 00:00:25]} 20. Qd2 {[%emt 00:01:16]} Ne6 {[%clk 00:06:25]}
{[%emt 00:01:00]} 21. e5 {[%clk 00:06:54]} Bg5 {[%clk 00:06:12]} {[%emt
00:00:41]} 22. Be3 {[%clk 00:05:23]} Bxe3+ {[%clk 00:06:08]} {[%emt 00:01:46]}
23. Rxe3 {[%clk 00:05:02]} Rb6 {[%clk 00:05:33]} {[%emt 00:01:05]} 24. Rd3
{[%clk 00:04:50]} Nc5 {[%clk 00:03:33]} {[%emt 00:02:22]} 25. Nd5 {[%clk
00:04:07]} Nxd3 {[%clk 00:02:17]} {[%emt 00:02:09]} 26. Nxb6 {[%clk 00:04:10]}
axb6 {[%clk 00:02:17]} {[%emt 00:00:08]} 27. Qxd3 Rxa2 28. exd6 {[%clk
00:03:55]} {[%emt 00:00:01]} Qxd6 {[%clk 00:01:42]} {[%emt 00:00:34]} 29. Qc4
{[%clk 00:03:55]} {[%emt 00:00:04]} Ra8 {[%clk 00:01:05]} {[%emt 00:00:43]} 30.
Qxh4 {[%clk 00:03:54]} {[%emt 00:00:06]} Qc5+ {[%clk 00:01:00]} {[%emt
00:00:11]} 31. Qf2 {[%emt 00:00:10]} Qd6 {[%clk 00:00:44]} {[%emt 00:00:19]} 32.
g4 {[%clk 00:03:32]} {[%emt 00:00:23]} Re8 {[%clk 00:00:35]} {[%emt 00:00:14]}
33. Re1 {[%clk 00:03:26]} {[%emt 00:00:11]} Rd8 {[%clk 00:00:27]} {[%emt
00:00:14]} 34. Kg2 {[%clk 00:03:12]} {[%emt 00:00:19]} Qb4 {[%clk 00:00:21]}
{[%emt 00:00:10]} 35. b3 {[%clk 00:02:44]} {[%emt 00:00:34]} Qd6 {[%clk
00:00:08]} {[%emt 00:00:18]} 36. h4 {[%clk 00:02:42]} {[%emt 00:00:06]} Qc6
{[%clk 00:00:11]} {[%emt 00:00:03]} 37. Kg3 {[%clk 00:02:15]} {[%emt 00:00:31]}
Qd6+ {[%clk 00:00:13]} {[%emt 00:00:04]} 38. f4 {[%clk 00:02:14]} {[%emt
00:00:06]} Qb4 {[%clk 00:00:15]} {[%emt 00:00:02]} 39. Qf3 {[%clk 00:01:55]}
{[%emt 00:00:25]} Qd2 {[%clk 00:00:18]} {[%emt 00:00:02]} 40. Re2 {[%clk
00:01:55]} {[%emt 00:00:05]} Qd6 {[%clk 00:00:19]} {[%emt 00:00:03]} 41. Re3
{[%clk 00:01:52]} {[%emt 00:00:09]} Qc5 {[%clk 00:00:21]} {[%emt 00:00:03]} 42.
Rd3 {[%clk 00:01:50]} {[%emt 00:00:06]} Re8 {[%clk 00:00:23]} {[%emt 00:00:04]}
43. g5 {[%clk 00:01:47]} {[%emt 00:00:07]} Qxc2 {[%clk 00:00:26]} {[%emt
00:00:02]} 44. Rc3 {[%clk 00:01:45]} {[%emt 00:00:08]} Qd2 {[%clk 00:00:29]}
{[%emt 00:00:02]} 45. Kg4 {[%clk 00:01:42]} {[%emt 00:00:08]} Qd7+ {[%clk
00:00:30]} {[%emt 00:00:03]} 46. Kh5 {[%clk 00:01:34]} {[%emt 00:01:27]} g6+
{[%clk 00:01:27]} {[%emt 00:00:07]} 47. Kh6 {[%clk 00:01:35]} {[%emt 00:00:05]}
Qe7 {[%clk 00:01:06]} {[%emt 00:00:25]} 0-1



[ePGN "0.1;DGT LiveChess/2.2.6"]

[Event "MČR juniorů a juniorek v rapid šachu 2024"]
[Site "Hotel Fit Fun, Harrachov, Czech Republic"]
[Date "2024.09.21"]
[Round "5.35"]
[White "Musil Tomas"]
[Black "Kopecka Libuse"]
[Result "1/2-1/2"]
[TimeControl "20+5"]
[WhiteFideId "23762888"]
[BlackFideId "23748826"]
[WhiteElo "1519"]
[BlackElo "1496"]

1. e4 {[%clk 00:20:08]} {[%emt 00:00:02]} c5 {[%clk 00:20:10]} 2. Nf3 {[%clk
00:20:11]} {[%emt 00:00:01]} Nc6 {[%clk 00:20:14]} 3. d4 {[%clk 00:20:15]}
{[%emt 00:00:01]} cxd4 {[%clk 00:20:18]} {[%emt 00:00:01]} 4. Nxd4 {[%clk
00:20:19]} {[%emt 00:00:02]} d6 {[%clk 00:20:22]} 5. Nxc6 {[%clk 00:20:22]}
{[%emt 00:00:02]} bxc6 {[%clk 00:20:26]} 6. Nc3 {[%clk 00:20:25]} {[%emt
00:00:02]} g6 {[%clk 00:20:23]} {[%emt 00:00:09]} 7. Bd3 {[%clk 00:20:25]}
{[%emt 00:00:05]} Bg7 {[%clk 00:20:18]} {[%emt 00:00:10]} 8. Bd2 {[%clk
00:20:29]} Nf6 {[%clk 00:20:16]} {[%emt 00:00:08]} 9. O-O {[%clk 00:20:30]}
{[%emt 00:00:03]} O-O {[%clk 00:20:06]} {[%emt 00:00:15]} 10. Re1 {[%clk
00:20:16]} {[%emt 00:00:19]} Qb6 {[%clk 00:19:35]} {[%emt 00:00:36]} 11. Na4
{[%clk 00:19:32]} {[%emt 00:00:49]} Qb7 {[%clk 00:18:26]} {[%emt 00:01:14]} 12.
Bc3 {[%clk 00:18:53]} {[%emt 00:00:44]} Bd7 {[%clk 00:17:41]} {[%emt 00:00:50]}
13. b3 {[%clk 00:18:37]} {[%emt 00:00:21]} c5 {[%clk 00:17:02]} {[%emt
00:00:45]} 14. Nb2 {[%clk 00:17:59]} {[%emt 00:00:43]} Bc6 {[%clk 00:16:02]}
{[%emt 00:01:05]} 15. f3 {[%clk 00:17:35]} {[%emt 00:00:29]} a6 {[%clk
00:14:48]} {[%emt 00:01:18]} 16. Re2 {[%clk 00:15:26]} {[%emt 00:02:13]} Qa7
{[%clk 00:14:08]} {[%emt 00:00:46]} 17. Kh1 {[%clk 00:14:58]} {[%emt 00:00:33]}
Bb5 {[%clk 00:12:38]} {[%emt 00:01:35]} 18. Qe1 {[%clk 00:13:25]} {[%emt
00:01:38]} Rfe8 {[%clk 00:11:32]} {[%emt 00:01:12]} 19. a4 {[%clk 00:12:56]}
{[%emt 00:00:33]} Bc6 {[%clk 00:10:27]} {[%emt 00:01:10]} 20. Rd1 {[%clk
00:11:27]} {[%emt 00:01:33]} Rad8 {[%clk 00:09:23]} {[%emt 00:01:10]} 21. e5
{[%clk 00:10:12]} {[%emt 00:01:20]} Nd5 {[%clk 00:08:21]} {[%emt 00:01:08]} 22.
Be4 {[%clk 00:08:07]} {[%emt 00:02:10]} Nxc3 {[%clk 00:07:08]} {[%emt
00:01:17]} 23. Qxc3 {[%clk 00:08:10]} {[%emt 00:00:02]} Bxe5 {[%clk 00:06:33]}
{[%emt 00:00:40]} 24. Qd3 {[%clk 00:07:46]} {[%emt 00:00:29]} Bxe4 {[%clk
00:06:18]} {[%emt 00:00:20]} 25. Rxe4 {[%clk 00:06:55]} {[%emt 00:00:56]} Bxb2
{[%clk 00:06:04]} {[%emt 00:00:20]} 26. c3 {[%clk 00:06:59]} {[%emt 00:00:01]}
Qb7 {[%clk 00:04:39]} {[%emt 00:01:29]} 27. b4 {[%clk 00:06:31]} {[%emt
00:00:32]} cxb4 {[%clk 00:04:12]} {[%emt 00:00:31]} 28. Rxb4 {[%clk 00:06:32]}
{[%emt 00:00:05]} Qd7 {[%clk 00:03:34]} {[%emt 00:00:43]} 29. Rxb2 {[%clk
00:06:13]} {[%emt 00:00:24]} Qxa4 {[%clk 00:03:18]} {[%emt 00:00:21]} 30. Rb4
{[%clk 00:05:45]} {[%emt 00:00:32]} Qc6 {[%clk 00:03:02]} {[%emt 00:00:21]} 31.
Rdb1 {[%clk 00:05:39]} {[%emt 00:00:11]} Rc8 {[%clk 00:02:33]} {[%emt
00:00:35]} 32. c4 {[%clk 00:05:15]} {[%emt 00:00:29]} a5 {[%clk 00:02:22]}
{[%emt 00:00:16]} 33. Rb5 {[%clk 00:04:13]} {[%emt 00:01:08]} Qxc4 {[%clk
00:02:03]} {[%emt 00:00:24]} 34. Qxc4 {[%clk 00:04:16]} {[%emt 00:00:01]} Rxc4
{[%clk 00:02:07]} {[%emt 00:00:02]} 35. Rxa5 {[%clk 00:04:19]} {[%emt
00:00:01]} Rec8 {[%clk 00:02:03]} {[%emt 00:00:08]} 36. g3 {[%clk 00:04:09]}
{[%emt 00:00:16]} f6 {[%clk 00:01:49]} {[%emt 00:00:20]} 37. Kg2 {[%clk
00:04:03]} {[%emt 00:00:10]} Rc2+ {[%clk 00:01:43]} {[%emt 00:00:11]} 38. Kh3
{[%clk 00:04:07]} R8c7 {[%clk 00:01:42]} {[%emt 00:00:07]} 39. Re1 {[%clk
00:03:59]} {[%emt 00:00:13]} Kf7 {[%clk 00:01:44]} {[%emt 00:00:04]} 40. g4
{[%clk 00:03:54]} {[%emt 00:00:10]} R7c3 {[%clk 00:01:29]} {[%emt 00:00:20]} 41.
Kg3 {[%clk 00:03:53]} {[%emt 00:00:06]} Rc7 {[%clk 00:01:22]} {[%emt 00:00:11]}
42. h4 {[%clk 00:03:52]} {[%emt 00:00:06]} h6 {[%clk 00:01:21]} {[%emt
00:00:06]} 43. h5 {[%clk 00:03:36]} {[%emt 00:00:20]} g5 {[%clk 00:01:21]}
{[%emt 00:00:06]} 44. Re4 {[%clk 00:03:07]} {[%emt 00:00:34]} R2c5 {[%clk
00:01:13]} {[%emt 00:00:14]} 45. Raa4 {[%clk 00:02:55]} {[%emt 00:00:17]} d5
{[%clk 00:01:00]} {[%emt 00:00:18]} 46. Red4 {[%clk 00:02:51]} {[%emt
00:00:08]} e5 {[%clk 00:00:48]} {[%emt 00:00:17]} 47. Rd3 {[%clk 00:02:46]}
{[%emt 00:00:08]} Ke6 {[%clk 00:00:50]} {[%emt 00:00:05]} 48. Re3 {[%clk
00:02:43]} {[%emt 00:00:08]} d4 {[%clk 00:00:33]} {[%emt 00:00:22]} 49. Rxd4
{[%clk 00:02:46]} {[%emt 00:00:03]} Rc3 {[%clk 00:00:24]} {[%emt 00:00:13]} 50.
Re1 {[%clk 00:02:37]} {[%emt 00:00:14]} R3c4 {[%clk 00:00:18]} {[%emt
00:00:12]} 51. Rd3 {[%clk 00:02:36]} {[%emt 00:00:06]} Rc3 {[%clk 00:00:20]}
{[%emt 00:00:03]} 52. Rd2 {[%clk 00:02:30]} {[%emt 00:00:11]} Rc2 {[%clk
00:00:20]} {[%emt 00:00:04]} 53. Rdd1 {[%clk 00:02:27]} {[%emt 00:00:08]} R2c3
{[%clk 00:00:19]} {[%emt 00:00:06]} 54. Ra1 {[%clk 00:02:25]} {[%emt 00:00:07]}
R3c6 {[%clk 00:00:18]} {[%emt 00:00:06]} 55. Ra4 {[%clk 00:02:25]} {[%emt
00:00:05]} Rc4 {[%clk 00:00:20]} {[%emt 00:00:04]} 56. Ra6+ {[%clk 00:02:28]}
{[%emt 00:00:01]} R4c6 {[%clk 00:00:24]} 57. Ra3 {[%clk 00:02:15]} {[%emt
00:00:18]} Rc3 {[%clk 00:00:28]} {[%emt 00:00:01]} 58. Raa1 {[%clk 00:01:56]}
{[%emt 00:00:24]} R3c6 {[%clk 00:00:30]} {[%emt 00:00:03]} 59. Ra4 {[%clk
00:01:44]} {[%emt 00:00:17]} Rc4 {[%clk 00:00:34]} {[%emt 00:00:02]} 1/2-1/2



[ePGN "0.1;DGT LiveChess/2.2.6"]